[Event "Late-Titled-Tuesday-Blitz-November-28-2023"]
[Site "Chess.com"]
[Date "2023.11.28"]
[Round "8"]
[White "Korchmar_Vasiliy"]
[Black "Likvidator228"]
[Result "1-0"]
[WhiteElo "2725"]
[BlackElo "2559"]
[TimeControl "180+1"]
[EndTime "15:24:38 PST"]
[Termination "Korchmar_Vasiliy won by resignation"]

1. e4 {[%clk 0:03:00.9]} 1... c5 {[%clk 0:02:59.3]} 2. d4 {[%clk 0:03:01]} 2...
cxd4 {[%clk 0:02:59.1]} 3. Qxd4 {[%clk 0:03:01.9]} 3... Nc6 {[%clk 0:02:58.9]}
4. Qd3 {[%clk 0:03:02.4]} 4... Nf6 {[%clk 0:02:58.6]} 5. Nc3 {[%clk 0:03:02.3]}
5... g6 {[%clk 0:02:58.2]} 6. Nf3 {[%clk 0:03:02.8]} 6... Bg7 {[%clk 0:02:55.3]}
7. Be2 {[%clk 0:03:03.3]} 7... O-O {[%clk 0:02:55.3]} 8. O-O {[%clk 0:03:04.1]}
8... d6 {[%clk 0:02:55.5]} 9. Nd5 {[%clk 0:03:04.7]} 9... Nxd5 {[%clk
0:02:50.7]} 10. exd5 {[%clk 0:03:05.6]} 10... Ne5 {[%clk 0:02:44.8]} 11. Nxe5
{[%clk 0:03:06]} 11... Bxe5 {[%clk 0:02:45.7]} 12. c3 {[%clk 0:03:06.8]} 12...
Bf5 {[%clk 0:02:45.1]} 13. Qd1 {[%clk 0:03:03.8]} 13... a6 {[%clk 0:02:43.2]}
14. Bh6 {[%clk 0:02:56]} 14... Re8 {[%clk 0:02:43]} 15. Qd2 {[%clk 0:02:54.7]}
15... b5 {[%clk 0:02:40.6]} 16. a4 {[%clk 0:02:53.1]} 16... Rb8 {[%clk
0:02:34.5]} 17. axb5 {[%clk 0:02:52.9]} 17... axb5 {[%clk 0:02:35.4]} 18. Ra7
{[%clk 0:02:45.8]} 18... b4 {[%clk 0:02:32.3]} 19. c4 {[%clk 0:02:25.8]} 19...
Ra8 {[%clk 0:02:13.5]} 20. Rfa1 {[%clk 0:02:20.6]} 20... Rxa7 {[%clk 0:02:13.7]}
21. Rxa7 {[%clk 0:02:21.5]} 21... Qb8 {[%clk 0:02:13.7]} 22. Be3 {[%clk
0:02:13.2]} 22... Bf6 {[%clk 0:02:02.3]} 23. g4 {[%clk 0:01:48]} 23... Bc8
{[%clk 0:01:56.9]} 24. Bd4 {[%clk 0:01:48.2]} 24... Bxd4 {[%clk 0:01:44.8]} 25.
Qxd4 {[%clk 0:01:49.1]} 25... b3 {[%clk 0:01:45.1]} 26. Kg2 {[%clk 0:01:23.7]}
26... Qb4 {[%clk 0:01:39.3]} 27. Bf3 {[%clk 0:01:19]} 27... Qe1 {[%clk
0:01:24.4]} 28. h4 {[%clk 0:01:13]} 28... e5 {[%clk 0:01:13.8]} 29. dxe6 {[%clk
0:01:10.4]} 29... Bxe6 {[%clk 0:01:08.1]} 30. h5 {[%clk 0:01:08.4]} 30... gxh5
{[%clk 0:01:00.3]} 31. gxh5 {[%clk 0:01:09.3]} 31... Qe5 {[%clk 0:00:57.6]} 32.
Qxe5 {[%clk 0:01:07.1]} 32... dxe5 {[%clk 0:00:58]} 33. c5 {[%clk 0:01:07.8]}
33... Rc8 {[%clk 0:00:50.4]} 34. c6 {[%clk 0:01:03.1]} 34... f5 {[%clk
0:00:50.5]} 35. Re7 {[%clk 0:01:01.4]} 35... e4 {[%clk 0:00:37.9]} 36. Rxe6
{[%clk 0:00:52.5]} 36... exf3+ {[%clk 0:00:37.9]} 37. Kxf3 {[%clk 0:00:53.4]}
37... Kf7 {[%clk 0:00:38.5]} 38. Rh6 {[%clk 0:00:52.7]} 38... Kg7 {[%clk
0:00:35.8]} 39. Rd6 {[%clk 0:00:52.9]} 39... Kf7 {[%clk 0:00:33.2]} 40. Kf4
{[%clk 0:00:52.4]} 40... Ke7 {[%clk 0:00:30.2]} 41. Rh6 {[%clk 0:00:51.7]} 41...
Rf8 {[%clk 0:00:30.7]} 42. Rxh7+ {[%clk 0:00:49.8]} 42... Kd6 {[%clk 0:00:31.3]}
43. Rh6+ {[%clk 0:00:49.6]} 43... Kc7 {[%clk 0:00:31.8]} 44. Re6 {[%clk
0:00:44.3]} 44... Rh8 {[%clk 0:00:31]} 45. h6 {[%clk 0:00:44.5]} 45... Rf8
{[%clk 0:00:31.2]} 46. h7 {[%clk 0:00:44.1]} 46... Rh8 {[%clk 0:00:31.3]} 47.
Rh6 {[%clk 0:00:44.4]} 1-0

[Event "Late-Titled-Tuesday-Blitz-November-28-2023"]
[Site "Chess.com"]
[Date "2023.11.28"]
[Round "8"]
[White "kai_nov"]
[Black "RodokininEV"]
[Result "1/2-1/2"]
[WhiteElo "2298"]
[BlackElo "2581"]
[TimeControl "180+1"]
[EndTime "15:24:39 PST"]
[Termination "Game drawn by repetition"]

1. d4 {[%clk 0:02:52.8]} 1... Nf6 {[%clk 0:03:00.9]} 2. c4 {[%clk 0:02:49.8]}
2... g6 {[%clk 0:03:00.9]} 3. f3 {[%clk 0:02:49.5]} 3... Bg7 {[%clk 0:03:01.3]}
4. e4 {[%clk 0:02:49.7]} 4... d6 {[%clk 0:03:01.4]} 5. Nc3 {[%clk 0:02:50.2]}
5... O-O {[%clk 0:03:01.3]} 6. Bg5 {[%clk 0:02:50.8]} 6... h6 {[%clk 0:03:00.5]}
7. Be3 {[%clk 0:02:50.5]} 7... Nc6 {[%clk 0:02:59.3]} 8. Nge2 {[%clk 0:02:49.9]}
8... a6 {[%clk 0:02:56]} 9. Qd2 {[%clk 0:02:49.5]} 9... Kh7 {[%clk 0:02:55.3]}
10. Rc1 {[%clk 0:02:46.2]} 10... e5 {[%clk 0:02:52.8]} 11. d5 {[%clk 0:02:45]}
11... Ne7 {[%clk 0:02:52.2]} 12. c5 {[%clk 0:02:39.2]} 12... Nfg8 {[%clk
0:02:51.9]} 13. cxd6 {[%clk 0:02:36.4]} 13... cxd6 {[%clk 0:02:52.1]} 14. g4
{[%clk 0:02:34.3]} 14... f5 {[%clk 0:02:50.1]} 15. gxf5 {[%clk 0:02:31.8]} 15...
gxf5 {[%clk 0:02:51]} 16. Rg1 {[%clk 0:02:26.9]} 16... Ng6 {[%clk 0:02:46.1]}
17. Bf2 {[%clk 0:02:17.3]} 17... fxe4 {[%clk 0:02:42.3]} 18. Nxe4 {[%clk
0:02:15.8]} 18... Bf5 {[%clk 0:02:40.8]} 19. N2g3 {[%clk 0:02:15.5]} 19... Bxe4
{[%clk 0:02:38.1]} 20. fxe4 {[%clk 0:02:15.7]} 20... Nf4 {[%clk 0:02:32.1]} 21.
Nf5 {[%clk 0:02:09]} 21... Rxf5 {[%clk 0:02:32]} 22. exf5 {[%clk 0:02:09.4]}
22... Qf6 {[%clk 0:02:32.9]} 23. Rc7 {[%clk 0:02:06.3]} 23... Ne7 {[%clk
0:02:25.4]} 24. Bg2 {[%clk 0:01:21.9]} 24... Kh8 {[%clk 0:02:14.4]} 25. Be4
{[%clk 0:01:20.7]} 25... Re8 {[%clk 0:02:10.4]} 26. Be3 {[%clk 0:01:06.5]} 26...
b5 {[%clk 0:02:07.8]} 27. Kd1 {[%clk 0:00:51.3]} 27... Rb8 {[%clk 0:01:56.8]}
28. Qf2 {[%clk 0:00:40.4]} 28... Nh3 {[%clk 0:01:51.7]} 29. Qg3 {[%clk
0:00:29.6]} 29... Nxg1 {[%clk 0:01:51.2]} 30. Qxg1 {[%clk 0:00:30.5]} 30... Qh4
{[%clk 0:01:45.7]} 31. f6 {[%clk 0:00:20.1]} 31... Qxf6 {[%clk 0:01:44.4]} 32.
Rxe7 {[%clk 0:00:19]} 32... Qxe7 {[%clk 0:01:41.5]} 33. Qg6 {[%clk 0:00:19]}
33... Kg8 {[%clk 0:01:42]} 34. Qh7+ {[%clk 0:00:15.6]} 34... Kf8 {[%clk
0:01:41.7]} 35. Bxh6 {[%clk 0:00:14.7]} 35... Qf6 {[%clk 0:01:36.8]} 36. Qh8+
{[%clk 0:00:07.1]} 36... Kf7 {[%clk 0:01:32.4]} 37. Qxb8 {[%clk 0:00:07.2]}
37... Qf1+ {[%clk 0:01:29.3]} 38. Kc2 {[%clk 0:00:05.9]} 38... Qc4+ {[%clk
0:01:28.8]} 39. Kd1 {[%clk 0:00:05]} 39... Qd4+ {[%clk 0:01:24.6]} 40. Bd2
{[%clk 0:00:04.4]} 40... Qxe4 {[%clk 0:01:24.9]} 41. Qxd6 {[%clk 0:00:03.8]}
41... Qb1+ {[%clk 0:01:24.7]} 42. Ke2 {[%clk 0:00:03.3]} 42... Qe4+ {[%clk
0:01:24.5]} 43. Kd1 {[%clk 0:00:03.6]} 43... Qb1+ {[%clk 0:01:24.2]} 44. Ke2
{[%clk 0:00:03.9]} 44... Qxb2 {[%clk 0:01:25.1]} 45. Qe6+ {[%clk 0:00:03.4]}
45... Kf8 {[%clk 0:01:24.7]} 46. d6 {[%clk 0:00:04.3]} 46... Qd4 {[%clk
0:01:20.5]} 47. d7 {[%clk 0:00:04.5]} 47... Qe4+ {[%clk 0:01:20.3]} 48. Kd1
{[%clk 0:00:04.9]} 48... Qb1+ {[%clk 0:01:19.8]} 49. Ke2 {[%clk 0:00:05.3]}
49... Qe4+ {[%clk 0:01:19.2]} 50. Be3 {[%clk 0:00:05.4]} 50... Qc2+ {[%clk
0:01:16]} 51. Bd2 {[%clk 0:00:05.4]} 51... Qe4+ {[%clk 0:01:15.9]} 1/2-1/2

[Event "Late-Titled-Tuesday-Blitz-November-28-2023"]
[Site "Chess.com"]
[Date "2023.11.28"]
[Round "8"]
[White "ural58"]
[Black "picturesquecheck"]
[Result "0-1"]
[WhiteElo "2460"]
[BlackElo "2376"]
[TimeControl "180+1"]
[EndTime "15:24:42 PST"]
[Termination "picturesquecheck won by resignation"]

1. e4 {[%clk 0:02:59.2]} 1... c5 {[%clk 0:02:58.9]} 2. b3 {[%clk 0:02:53.6]}
2... d6 {[%clk 0:02:57.2]} 3. Bb2 {[%clk 0:02:50.7]} 3... Nc6 {[%clk 0:02:57.3]}
4. Bb5 {[%clk 0:02:46.5]} 4... Bd7 {[%clk 0:02:57]} 5. Ne2 {[%clk 0:02:43.1]}
5... e5 {[%clk 0:02:55.8]} 6. O-O {[%clk 0:02:36.7]} 6... a6 {[%clk 0:02:53.4]}
7. Bxc6 {[%clk 0:02:22.1]} 7... Bxc6 {[%clk 0:02:54.3]} 8. d3 {[%clk 0:02:17.9]}
8... Ne7 {[%clk 0:02:52.9]} 9. f4 {[%clk 0:02:17.3]} 9... f6 {[%clk 0:02:53]}
10. c4 {[%clk 0:02:10.6]} 10... Ng6 {[%clk 0:02:52.6]} 11. Nbc3 {[%clk
0:02:09.7]} 11... Be7 {[%clk 0:02:51.9]} 12. Nd5 {[%clk 0:02:08]} 12... Bxd5
{[%clk 0:02:49.7]} 13. cxd5 {[%clk 0:02:05.9]} 13... O-O {[%clk 0:02:49.5]} 14.
f5 {[%clk 0:02:00.9]} 14... Nh8 {[%clk 0:02:49.1]} 15. g4 {[%clk 0:01:54]} 15...
h6 {[%clk 0:02:48]} 16. h4 {[%clk 0:01:48.4]} 16... Qe8 {[%clk 0:02:39.8]} 17.
Ng3 {[%clk 0:01:44.9]} 17... Bd8 {[%clk 0:02:36.6]} 18. Kg2 {[%clk 0:01:40.9]}
18... b5 {[%clk 0:02:35.9]} 19. Bc1 {[%clk 0:01:40.5]} 19... Nf7 {[%clk
0:02:35.5]} 20. Bd2 {[%clk 0:01:32.7]} 20... a5 {[%clk 0:02:30.5]} 21. a4 {[%clk
0:01:30.4]} 21... b4 {[%clk 0:02:30.2]} 22. Rh1 {[%clk 0:01:24.1]} 22... Ra7
{[%clk 0:02:27.9]} 23. Qe2 {[%clk 0:01:21.1]} 23... Qd7 {[%clk 0:02:18.9]} 24.
Rag1 {[%clk 0:01:17.4]} 24... Qc8 {[%clk 0:02:11.5]} 25. Nh5 {[%clk 0:01:16.4]}
25... Rd7 {[%clk 0:01:58.7]} 26. Kf1 {[%clk 0:01:15.7]} 26... Qa6 {[%clk
0:01:56.8]} 27. Rg3 {[%clk 0:01:07.9]} 27... Re8 {[%clk 0:01:46]} 28. Rhg1
{[%clk 0:01:03.2]} 28... Kf8 {[%clk 0:01:46]} 29. Kg2 {[%clk 0:00:43]} 29... Qa7
{[%clk 0:01:06.4]} 30. Kh3 {[%clk 0:00:42.2]} 30... Qa6 {[%clk 0:01:01.5]} 31.
Qg2 {[%clk 0:00:41.7]} 31... Rb7 {[%clk 0:00:53.7]} 32. g5 {[%clk 0:00:34.7]}
32... fxg5 {[%clk 0:00:53.2]} 33. hxg5 {[%clk 0:00:34.9]} 33... Nxg5+ {[%clk
0:00:44]} 34. Bxg5 {[%clk 0:00:30.5]} 34... Bxg5 {[%clk 0:00:44.9]} 35. Rxg5
{[%clk 0:00:28.4]} 35... hxg5 {[%clk 0:00:42.7]} 36. Qxg5 {[%clk 0:00:23.6]}
36... Qxd3+ {[%clk 0:00:42.6]} 37. Rg3 {[%clk 0:00:23.8]} 37... Qxe4 {[%clk
0:00:40.5]} 38. Nxg7 {[%clk 0:00:20]} 38... Qh1+ {[%clk 0:00:40.2]} 39. Kg4
{[%clk 0:00:20.4]} 39... Rxg7 {[%clk 0:00:39.4]} 0-1

[Event "Late-Titled-Tuesday-Blitz-November-28-2023"]
[Site "Chess.com"]
[Date "2023.11.28"]
[Round "8"]
[White "TRadjabov"]
[Black "DreamsAreFake"]
[Result "1-0"]
[WhiteElo "3017"]
[BlackElo "2690"]
[TimeControl "180+1"]
[EndTime "15:24:50 PST"]
[Termination "TRadjabov won by resignation"]

1. d4 {[%clk 0:02:55.5]} 1... Nf6 {[%clk 0:03:00]} 2. c4 {[%clk 0:02:55.5]} 2...
b6 {[%clk 0:03:00.4]} 3. Nc3 {[%clk 0:02:55.2]} 3... Bb7 {[%clk 0:03:01.2]} 4.
Nf3 {[%clk 0:02:55.1]} 4... d5 {[%clk 0:03:01.4]} 5. Bg5 {[%clk 0:02:49.1]} 5...
dxc4 {[%clk 0:02:51.7]} 6. e3 {[%clk 0:02:48.1]} 6... e6 {[%clk 0:02:49.7]} 7.
Bxc4 {[%clk 0:02:47.5]} 7... Be7 {[%clk 0:02:50.4]} 8. Bb5+ {[%clk 0:02:43.3]}
8... c6 {[%clk 0:02:48]} 9. Bd3 {[%clk 0:02:43.5]} 9... h6 {[%clk 0:02:47.4]}
10. Bxf6 {[%clk 0:02:39.4]} 10... Bxf6 {[%clk 0:02:48.3]} 11. Ne4 {[%clk
0:02:39.4]} 11... Be7 {[%clk 0:02:41.8]} 12. Rc1 {[%clk 0:02:39.1]} 12... O-O
{[%clk 0:02:41.8]} 13. O-O {[%clk 0:02:38.4]} 13... Nd7 {[%clk 0:02:42.1]} 14.
Qa4 {[%clk 0:02:28.6]} 14... c5 {[%clk 0:02:35.9]} 15. Rfd1 {[%clk 0:02:28.3]}
15... cxd4 {[%clk 0:02:33.5]} 16. Nxd4 {[%clk 0:02:27.6]} 16... Nc5 {[%clk
0:02:17]} 17. Nxc5 {[%clk 0:02:25.2]} 17... Bxc5 {[%clk 0:02:17.9]} 18. Nc6
{[%clk 0:02:08]} 18... Bxc6 {[%clk 0:01:29.9]} 19. Qxc6 {[%clk 0:02:06.7]} 19...
Qe7 {[%clk 0:01:18.7]} 20. Qe4 {[%clk 0:01:50]} 20... g6 {[%clk 0:01:18.8]} 21.
h4 {[%clk 0:01:50]} 21... h5 {[%clk 0:01:17.5]} 22. b4 {[%clk 0:01:37.8]} 22...
Bxb4 {[%clk 0:01:11.8]} 23. g4 {[%clk 0:01:37.7]} 23... hxg4 {[%clk 0:01:00]}
24. Qxg4 {[%clk 0:01:36.2]} 24... Bc5 {[%clk 0:00:47.9]} 25. h5 {[%clk
0:01:31.2]} 25... g5 {[%clk 0:00:35.3]} 26. h6 {[%clk 0:01:25.6]} 26... f5
{[%clk 0:00:34.3]} 27. Qh5 {[%clk 0:01:25.9]} 27... Kh7 {[%clk 0:00:32.2]} 28.
Kf1 {[%clk 0:01:15.3]} 28... Qf6 {[%clk 0:00:31.5]} 29. Ke2 {[%clk 0:00:43.2]}
29... Rad8 {[%clk 0:00:27.4]} 30. Bc2 {[%clk 0:00:38.3]} 30... Qxh6 {[%clk
0:00:14.5]} 31. Qf3 {[%clk 0:00:38.1]} 31... Rxd1 {[%clk 0:00:13.2]} 32. Rxd1
{[%clk 0:00:38.2]} 32... g4 {[%clk 0:00:13.3]} 33. Qxg4 {[%clk 0:00:37.1]} 33...
Rg8 {[%clk 0:00:10.3]} 34. Qf3 {[%clk 0:00:34.4]} 34... Rg4 {[%clk 0:00:06.9]}
35. Qxg4 {[%clk 0:00:33.6]} 1-0

[Event "Late-Titled-Tuesday-Blitz-November-28-2023"]
[Site "Chess.com"]
[Date "2023.11.28"]
[Round "8"]
[White "LiemLe"]
[Black "ckgchess"]
[Result "0-1"]
[WhiteElo "3110"]
[BlackElo "2881"]
[TimeControl "180+1"]
[EndTime "15:24:59 PST"]
[Termination "ckgchess won on time"]

1. Nf3 {[%clk 0:03:00.9]} 1... Nf6 {[%clk 0:02:59.9]} 2. c4 {[%clk 0:03:00.8]}
2... e6 {[%clk 0:03:00]} 3. Nc3 {[%clk 0:03:00.5]} 3... d5 {[%clk 0:03:00.6]} 4.
e3 {[%clk 0:03:01.2]} 4... Be7 {[%clk 0:03:00.8]} 5. b3 {[%clk 0:03:01.4]} 5...
O-O {[%clk 0:03:01.3]} 6. Bb2 {[%clk 0:03:02.1]} 6... c6 {[%clk 0:02:59.1]} 7.
Qc2 {[%clk 0:03:01]} 7... b6 {[%clk 0:02:58]} 8. Rg1 {[%clk 0:03:01.3]} 8... Na6
{[%clk 0:02:38]} 9. a3 {[%clk 0:03:00.1]} 9... Nc5 {[%clk 0:02:32.6]} 10. g4
{[%clk 0:02:58.6]} 10... a5 {[%clk 0:02:23.5]} 11. g5 {[%clk 0:02:56.2]} 11...
Nfe4 {[%clk 0:02:23.7]} 12. h4 {[%clk 0:02:53.5]} 12... Ba6 {[%clk 0:01:51.4]}
13. Nd4 {[%clk 0:02:26.4]} 13... Qc7 {[%clk 0:01:44.7]} 14. f3 {[%clk
0:02:22.9]} 14... Qh2 {[%clk 0:01:38.4]} 15. fxe4 {[%clk 0:01:57.2]} 15... Qxg1
{[%clk 0:01:38.4]} 16. O-O-O {[%clk 0:01:52.3]} 16... Rfc8 {[%clk 0:01:22.6]}
17. Kb1 {[%clk 0:00:49.1]} 17... Qg3 {[%clk 0:01:12.3]} 18. exd5 {[%clk
0:00:40.9]} 18... cxd5 {[%clk 0:01:11.3]} 19. cxd5 {[%clk 0:00:41]} 19... Qxh4
{[%clk 0:00:43.3]} 20. Bxa6 {[%clk 0:00:24.9]} 20... Rxa6 {[%clk 0:00:44.2]} 21.
Ncb5 {[%clk 0:00:10.9]} 21... Qxg5 {[%clk 0:00:27.4]} 22. d6 {[%clk 0:00:06]}
22... Bf6 {[%clk 0:00:20.5]} 23. b4 {[%clk 0:00:06.5]} 23... axb4 {[%clk
0:00:21.1]} 24. axb4 {[%clk 0:00:07.4]} 24... Raa8 {[%clk 0:00:14.8]} 25. bxc5
{[%clk 0:00:07.3]} 25... bxc5 {[%clk 0:00:15.7]} 26. Nf3 {[%clk 0:00:06.5]}
26... Qh5 {[%clk 0:00:13.2]} 27. Bxf6 {[%clk 0:00:05.1]} 27... gxf6 {[%clk
0:00:13.4]} 28. Rg1+ {[%clk 0:00:04.7]} 28... Kh8 {[%clk 0:00:13.9]} 29. Ne1
{[%clk 0:00:01.1]} 29... Rab8 {[%clk 0:00:14.3]} 30. Qb2 {[%clk 0:00:01.7]}
30... Qe5 {[%clk 0:00:11.9]} 0-1

[Event "Late-Titled-Tuesday-Blitz-November-28-2023"]
[Site "Chess.com"]
[Date "2023.11.28"]
[Round "8"]
[White "TheMagician"]
[Black "Sulthankan"]
[Result "0-1"]
[WhiteElo "2293"]
[BlackElo "2385"]
[TimeControl "180+1"]
[EndTime "15:24:59 PST"]
[Termination "Sulthankan won by checkmate"]

1. d4 {[%clk 0:03:00.9]} 1... Nf6 {[%clk 0:03:00.1]} 2. Nc3 {[%clk 0:02:59.5]}
2... g6 {[%clk 0:03:00.6]} 3. e4 {[%clk 0:02:59.3]} 3... d5 {[%clk 0:03:01.3]}
4. e5 {[%clk 0:02:59.2]} 4... Ng8 {[%clk 0:02:57.1]} 5. f4 {[%clk 0:02:58.8]}
5... Bg7 {[%clk 0:02:57]} 6. Be3 {[%clk 0:02:54.1]} 6... h5 {[%clk 0:02:53.7]}
7. Nf3 {[%clk 0:02:38.8]} 7... Bg4 {[%clk 0:02:48.5]} 8. h3 {[%clk 0:02:38.1]}
8... Bxf3 {[%clk 0:02:48.7]} 9. Qxf3 {[%clk 0:02:37.5]} 9... e6 {[%clk
0:02:48.6]} 10. g4 {[%clk 0:02:33.1]} 10... hxg4 {[%clk 0:02:48.3]} 11. hxg4
{[%clk 0:02:33.3]} 11... Rxh1 {[%clk 0:02:03.9]} 12. Qxh1 {[%clk 0:02:32.7]}
12... c5 {[%clk 0:01:52.1]} 13. dxc5 {[%clk 0:02:24.9]} 13... Nc6 {[%clk
0:01:45.2]} 14. O-O-O {[%clk 0:02:21.4]} 14... Qa5 {[%clk 0:01:28]} 15. Bb5
{[%clk 0:02:02]} 15... Nh6 {[%clk 0:01:11.2]} 16. g5 {[%clk 0:01:23.9]} 16...
Nf5 {[%clk 0:01:06.5]} 17. Bf2 {[%clk 0:01:15]} 17... O-O-O {[%clk 0:01:01.6]}
18. Bxc6 {[%clk 0:01:05.8]} 18... bxc6 {[%clk 0:00:59.9]} 19. Kb1 {[%clk
0:01:04.3]} 19... Kb8 {[%clk 0:00:32.4]} 20. a3 {[%clk 0:00:52.2]} 20... Ka8
{[%clk 0:00:29.9]} 21. Ka2 {[%clk 0:00:50]} 21... Rb8 {[%clk 0:00:26.7]} 22. Rb1
{[%clk 0:00:47]} 22... Bf8 {[%clk 0:00:18.6]} 23. b4 {[%clk 0:00:44.4]} 23...
Qa6 {[%clk 0:00:19]} 24. Qf1 {[%clk 0:00:41.5]} 24... Qc8 {[%clk 0:00:17.3]} 25.
Ne2 {[%clk 0:00:39]} 25... Be7 {[%clk 0:00:10.9]} 26. Nd4 {[%clk 0:00:38.4]}
26... Bd8 {[%clk 0:00:10]} 27. Nxf5 {[%clk 0:00:37.8]} 27... exf5 {[%clk
0:00:10.9]} 28. c4 {[%clk 0:00:36.4]} 28... Qe6 {[%clk 0:00:10.8]} 29. Rc1
{[%clk 0:00:33.3]} 29... a5 {[%clk 0:00:10.3]} 30. Kb3 {[%clk 0:00:32.8]} 30...
Rb7 {[%clk 0:00:06.6]} 31. Bd4 {[%clk 0:00:28.7]} 31... Rd7 {[%clk 0:00:05.6]}
32. Bc3 {[%clk 0:00:27.5]} 32... dxc4+ {[%clk 0:00:05]} 33. Qxc4 {[%clk
0:00:27]} 33... a4+ {[%clk 0:00:05.6]} 34. Kxa4 {[%clk 0:00:25.7]} 34... Qxc4
{[%clk 0:00:06.5]} 35. e6 {[%clk 0:00:23.8]} 35... Ra7# {[%clk 0:00:05.3]} 0-1

[Event "Late-Titled-Tuesday-Blitz-November-28-2023"]
[Site "Chess.com"]
[Date "2023.11.28"]
[Round "8"]
[White "nitpicker"]
[Black "inagreV"]
[Result "1-0"]
[WhiteElo "2319"]
[BlackElo "2411"]
[TimeControl "180+1"]
[EndTime "15:25:06 PST"]
[Termination "nitpicker won on time"]

1. d4 {[%clk 0:03:00.9]} 1... Nf6 {[%clk 0:02:55.7]} 2. c4 {[%clk 0:03:00.9]}
2... c5 {[%clk 0:02:51.8]} 3. d5 {[%clk 0:03:00.5]} 3... d6 {[%clk 0:02:52.3]}
4. Nc3 {[%clk 0:02:59.6]} 4... g6 {[%clk 0:02:52.5]} 5. Nf3 {[%clk 0:02:58.6]}
5... Bg7 {[%clk 0:02:53.3]} 6. g3 {[%clk 0:02:58.5]} 6... e6 {[%clk 0:02:52.5]}
7. Bg2 {[%clk 0:02:58]} 7... exd5 {[%clk 0:02:52.8]} 8. cxd5 {[%clk 0:02:58.7]}
8... O-O {[%clk 0:02:52.5]} 9. O-O {[%clk 0:02:58.7]} 9... Nbd7 {[%clk
0:02:49.8]} 10. h3 {[%clk 0:02:54.5]} 10... a6 {[%clk 0:02:01.8]} 11. a4 {[%clk
0:02:53.8]} 11... Rb8 {[%clk 0:02:01.5]} 12. a5 {[%clk 0:02:40.3]} 12... b5
{[%clk 0:01:56.8]} 13. axb6 {[%clk 0:02:40.6]} 13... Rxb6 {[%clk 0:01:56.3]} 14.
Nd2 {[%clk 0:02:34.6]} 14... Qc7 {[%clk 0:01:43.3]} 15. Nc4 {[%clk 0:02:25.3]}
15... Rb4 {[%clk 0:01:43.1]} 16. Na5 {[%clk 0:02:11]} 16... Ne5 {[%clk
0:01:30.6]} 17. f4 {[%clk 0:01:53.4]} 17... Nc4 {[%clk 0:01:29.9]} 18. Nc6
{[%clk 0:01:50.1]} 18... Nxb2 {[%clk 0:00:24.7]} 19. Qc2 {[%clk 0:01:42.5]}
19... Bf5 {[%clk 0:00:24.6]} 20. e4 {[%clk 0:01:36.7]} 20... Nxe4 {[%clk
0:00:24.9]} 21. Nxe4 {[%clk 0:01:18.3]} 21... Nd3 {[%clk 0:00:19.8]} 22. Rxa6
{[%clk 0:01:11.4]} 22... Bxe4 {[%clk 0:00:15.4]} 23. Bxe4 {[%clk 0:01:09.8]}
23... Rxe4 {[%clk 0:00:15.6]} 24. Qxd3 {[%clk 0:01:08.6]} 24... Ree8 {[%clk
0:00:14.2]} 25. Bd2 {[%clk 0:01:02.1]} 25... Qc8 {[%clk 0:00:10.8]} 26. Kh2
{[%clk 0:00:51.9]} 26... c4 {[%clk 0:00:11.1]} 27. Qxc4 {[%clk 0:00:50.8]} 27...
Qf5 {[%clk 0:00:11.1]} 28. g4 {[%clk 0:00:45.9]} 28... Qe4 {[%clk 0:00:10.9]}
29. Qxe4 {[%clk 0:00:44.3]} 29... Rxe4 {[%clk 0:00:11.2]} 30. Rf2 {[%clk
0:00:43]} 30... Rfe8 {[%clk 0:00:10.7]} 31. Bb4 {[%clk 0:00:37.7]} 31... g5
{[%clk 0:00:06.7]} 32. Bxd6 {[%clk 0:00:34.1]} 32... gxf4 {[%clk 0:00:06.3]} 33.
Rxf4 {[%clk 0:00:34]} 33... Re2+ {[%clk 0:00:05.8]} 34. Kg3 {[%clk 0:00:34]}
34... Bc3 {[%clk 0:00:01]} 35. Bc5 {[%clk 0:00:22.1]} 1-0